fUST/lending_fUST_20250408
["ID","MTS","AMOUNT","RATE_DAILY","PERIOD"]
[357502917,1744092650899,-226.152958,0.000357,14]
[357502918,1744092650908,-160.0,0.000357,7]
[357502919,1744092650922,-235.872052,0.000357,14]
[357502920,1744092650932,-235.872052,0.000357,14]
[357502921,1744092650941,-1808.022347,0.000357,2]
[357502922,1744092650951,-1808.022347,0.000357,2]
[357502923,1744092650961,-151.0,0.000357,14]
[357502924,1744092650970,-151.0,0.000357,14]
[357502925,1744092650980,-151.0,0.000357,14]
[357502926,1744092650990,-611.1830386,0.0003577,2]
[357502927,1744092650999,-160.0,0.00035874,7]
[357502928,1744092651009,-453.79571,0.0003589,2]
[357502929,1744092651018,-508.87493241,0.00035928,5]
[357502930,1744092651028,-150.16910683,0.00035973,5]
[357502931,1744092651038,-250.49597576,0.00035973,5]
[357502932,1744092651048,-151.0,0.00035973,5]
[357502933,1744092651058,-151.0,0.00035973,5]
[357502934,1744092651068,-151.0,0.00035973,5]
[357502935,1744092651078,-151.0,0.00035973,5]
[357502936,1744092651088,-200.0,0.00035973,5]
[357502937,1744092651098,-207.4,0.00035973,5]
[357502938,1744092651109,-215.0738,0.00035973,5]
[357502939,1744092651119,-223.0315306,0.00035973,5]
[357502940,1744092651130,-368.10302466,0.00035973,5]
[357502941,1744092651140,-234.24959992,0.00035999,2]
[357502942,1744092651150,-161.39336328,0.00035999,2]
[357502943,1744092651160,-160.0,0.00035999,10]
[357502944,1744092651169,-24927.12359745,0.00036,2]
[357502945,1744092651179,-14149.75414217,0.00036,3]
[357502946,1744092651189,-133583.66268865,0.00036,2]
[357502947,1744092651513,-0.00685986,0.00036,2]
[357502948,1744092651545,-401.0,0.00027951,2]
[357502949,1744092651555,-1235.93650027,0.00036,2]
[357502950,1744092696199,-200.95324731,0.00019681,2]
[357502951,1744092699156,-186.92266443,0.00019681,2]
[357502952,1744092705820,-172.63844085,0.00019681,2]
[357502953,1744092712177,172.63844085,0.00025,120]
[357502954,1744092841783,500.0,1.8e-05,2]
[357502955,1744092842190,195.78,0.00013699,2]
[357502956,1744092843088,195.78,0.00013699,2]
[357502957,1744092843512,195.78007475,0.00013699,2]
[357502966,1744093333426,1002.0,0.00022,10]
[357502967,1744093422921,-151.06293082,0.00019579,2]
[357502968,1744093422945,-2.49588295,0.0001958,2]
[357502969,1744093434118,153.55881377,0.00022,10]
[357502970,1744093443277,-224.52615328,0.0001958,2]
[357502971,1744093450414,-287.70219431,0.0001958,2]
[357502972,1744093461575,-287.70219431,0.0001958,2]
[357502973,1744093469181,-500.0,0.0001958,2]
[357502975,1744093627106,-300.0,0.00019672,2]
[357502976,1744093627129,-500.0,0.00019673,2]
[357502977,1744093627151,-224.84517403,0.00019673,2]
[357502978,1744093627172,-500.0,0.00019673,2]
[357502979,1744093627193,-500.0,0.00019673,2]
[357502980,1744093627217,-500.0,0.00019673,2]
[357502981,1744093627239,-772.9,0.00019679,2]
[357502982,1744093627260,-151.83352874,0.00019679,2]
[357502983,1744093627282,-500.0,0.00019679,2]
[357502984,1744093627305,-500.0,0.00019679,2]
[357502985,1744093627326,-387.87591174,0.00019679,2]
[357502986,1744093627349,-629.34718407,0.00019679,2]
[357502987,1744093627370,-455.7563365,0.00019679,2]
[357502988,1744093627391,-72.64864401,0.0001968,2]
[357502989,1744093677091,10000.0,0.00025,120]
[357502991,1744093687584,10000.0,0.00025,120]
[357502992,1744093694269,408.91604265,0.0001399,2]
[357502994,1744093696239,5094.43939999,0.000125,2]
[357502995,1744093717612,3548.26197466,9e-05,2]
[357502997,1744093751220,-2646.4662627,0.0001958,2]
[357502998,1744093751241,-300.0,0.00019678,2]
[357502999,1744093751263,-500.0,0.00019679,2]
[357503000,1744093751285,-705.61,0.00019679,2]
[357503001,1744093751307,-500.0,0.00019679,2]
[357503002,1744093751328,-500.0,0.00019679,2]
[357503003,1744093751348,-852.36,0.00019679,2]
[357503004,1744093751370,-500.0,0.00019679,2]
[357503005,1744093751406,-500.0,0.00019679,2]
[357503006,1744093751429,-500.0,0.00019679,2]
[357503007,1744093751452,-500.0,0.00019679,2]
[357503008,1744093751474,-500.0,0.00019679,2]
[357503009,1744093751497,-500.0,0.00019679,2]
[357503010,1744093751519,-430.75330248,0.0001968,2]
[357503011,1744093751540,-500.0,0.0001968,2]
[357503012,1744093751561,-150.0,0.0001968,2]
[357503013,1744093751582,-500.0,0.0001968,2]
[357503014,1744093751603,-500.0,0.0001968,2]
[357503015,1744093751623,-520.96989407,0.0001968,2]
[357503016,1744093751645,-500.0,0.0001968,2]
[357503017,1744093751666,-513.66797243,0.0001968,2]
[357503018,1744093751688,-559.38280197,0.0001968,2]
[357503019,1744093751712,-500.0,0.0001968,2]
[357503020,1744093751734,-500.0,0.0001968,2]
[357503021,1744093751757,-500.0,0.0001968,2]
[357503022,1744093751779,-500.0,0.0001968,2]
[357503023,1744093751801,-500.0,0.0001968,2]
[357503024,1744093751827,-500.0,0.0001968,2]
[357503025,1744093751849,-500.0,0.0001968,2]
[357503026,1744093752126,-612.83,0.0001968,2]
[357503027,1744093752148,-509.84303538,0.0001968,2]
[357503028,1744093752169,-500.0,0.0001968,2]
[357503029,1744093752194,-500.0,0.0001968,2]
[357503030,1744093752216,-500.0,0.0001968,2]
[357503031,1744093752239,-500.0,0.0001968,2]
[357503032,1744093752262,-500.0,0.0001968,2]
[357503033,1744093752284,-500.0,0.0001968,2]
[357503034,1744093752307,-500.0,0.0001968,2]
[357503035,1744093752329,-500.0,0.0001968,2]
[357503036,1744093752352,-500.0,0.0001968,2]
[357503037,1744093752375,-500.0,0.0001968,2]
[357503038,1744093752398,-500.0,0.0001968,2]
[357503039,1744093752422,-500.0,0.0001968,2]
[357503040,1744093752450,-500.0,0.0001968,2]
[357503041,1744093752474,-500.0,0.0001968,2]
[357503042,1744093752498,-500.0,0.0001968,2]
[357503043,1744093752520,-500.0,0.0001968,2]
[357503044,1744093752543,-500.0,0.0001968,2]
[357503045,1744093752565,-500.0,0.0001968,2]
[357503046,1744093752587,-500.0,0.0001968,2]
[357503047,1744093752609,-500.0,0.0001968,2]
[357503048,1744093752630,-500.0,0.0001968,2]
[357503049,1744093752652,-500.0,0.0001968,2]
[357503050,1744093752674,-500.0,0.0001968,2]
[357503051,1744093752700,-500.0,0.0001968,2]
[357503052,1744093752722,-500.0,0.0001968,2]
[357503053,1744093752745,-500.0,0.0001968,2]
[357503054,1744093752768,-500.0,0.0001968,2]
[357503055,1744093752789,-500.0,0.0001968,2]
[357503056,1744093752814,-500.0,0.0001968,2]
[357503057,1744093752836,-500.0,0.0001968,2]
[357503058,1744093752859,-500.0,0.0001968,2]
[357503059,1744093752886,-500.0,0.0001968,2]
[357503060,1744093752911,-500.0,0.0001968,2]
[357503061,1744093752933,-500.0,0.0001968,2]
[357503062,1744093752957,-500.0,0.0001968,2]
[357503063,1744093752980,-1148.15,0.0001968,2]
[357503064,1744093753002,-500.0,0.0001968,2]
[357503065,1744093753023,-500.0,0.0001968,2]
[357503066,1744093753046,-640.3,0.0001968,2]
[357503067,1744093753067,-500.0,0.0001968,2]
[357503068,1744093753089,-500.0,0.0001968,2]
[357503069,1744093753109,-500.0,0.0001968,2]
[357503070,1744093753131,-500.0,0.0001968,2]
[357503071,1744093753152,-500.0,0.0001968,2]
[357503072,1744093753173,-500.0,0.0001968,2]
[357503073,1744093753197,-661.93,0.0001968,2]
[357503074,1744093753219,-632.53260044,0.0001968,2]
[357503075,1744093753241,-82003.17281308,0.00019681,2]
[357503076,1744093761418,-210.69165395,0.000195,5]
[357503077,1744093766124,-491.45272369,0.000195,5]
[357503078,1744093770083,-219.39267273,0.000195,5]
[357503124,1744093832536,-78.46294963,0.000195,5]
[357503125,1744093832547,-500.0,0.00019679,2]
[357503126,1744093832557,-500.0,0.00019679,2]
[357503127,1744093832567,-500.0,0.00019679,2]
[357503129,1744093832577,-500.0,0.00019679,2]
[357503130,1744093832586,-300.0,0.00019679,2]
[357503131,1744093832596,-380.51617838,0.00019679,2]
[357503132,1744093832608,-119.48382162,0.00019679,2]
[357503133,1744093832618,-210.32116172,0.00019679,2]
[357503141,1744093838554,-289.67883828,0.00019679,2]
[357503142,1744093838564,-360.98270545,0.00019679,2]
[357503152,1744093838654,-139.01729455,0.00019679,2]
[357503154,1744093838665,-500.0,0.0001968,2]
[357503156,1744093838677,-500.0,0.0001968,2]
[357503158,1744093838688,-500.0,0.0001968,2]
[357503160,1744093838699,-500.0,0.0001968,2]
[357503162,1744093838709,-500.0,0.0001968,2]
[357503164,1744093838721,-500.0,0.0001968,2]
[357503166,1744093838731,-500.0,0.0001968,2]
[357503168,1744093838743,-500.0,0.0001968,2]
[357503171,1744093838753,-287436.31283433,0.00019681,2]
[357503173,1744093838763,-500.0,0.00019779,2]
[357503175,1744093838778,-500.0,0.00019779,2]
[357503177,1744093838791,-500.0,0.00019779,2]
[357503179,1744093838801,-500.0,0.00019779,2]
[357503181,1744093838811,-500.0,0.00019779,2]
[357503183,1744093838821,-530.08021685,0.00019779,2]
[357503185,1744093838832,-500.0,0.00019779,2]
[357503187,1744093838845,-500.0,0.00019779,2]
[357503189,1744093838855,-500.0,0.00019779,2]
[357503191,1744093838865,-500.0,0.00019779,2]
[357503193,1744093838876,-500.0,0.00019779,2]
[357503195,1744093838886,-505.03558851,0.00019781,2]
[357503197,1744093838896,-585.09582093,0.00019781,2]
[357503199,1744093838906,-500.0,0.00019781,2]
[357503200,1744093838915,-500.0,0.00019953,2]
[357503201,1744093838926,-500.0,0.00019953,2]
[357503202,1744093838936,-705.61,0.00019953,2]
[357503203,1744093838946,-500.0,0.00019953,2]
[357503204,1744093838957,-500.0,0.00019953,2]
[357503205,1744093838967,-852.36,0.00019953,2]
[357503206,1744093838978,-500.0,0.00019953,2]
[357503207,1744093838988,-559.7,0.00019953,2]
[357503208,1744093839001,-500.0,0.00019953,2]
[357503209,1744093839013,-500.0,0.00019953,2]
[357503210,1744093839026,-500.0,0.00019953,2]
[357503211,1744093839036,-500.0,0.00019953,2]
[357503212,1744093839046,-500.0,0.00019953,2]
[357503213,1744093839060,-500.0,0.00019953,2]
[357503214,1744093839070,-500.0,0.00019953,2]
[357503215,1744093839080,-500.0,0.00019953,2]
[357503216,1744093839090,-500.0,0.00019953,2]
[357503217,1744093839100,-596.69,0.00019954,2]
[357503218,1744093839110,-500.0,0.00019954,2]
[357503219,1744093839120,-500.0,0.00019954,2]
[357503220,1744093839130,-500.0,0.00019954,2]
[357503221,1744093839140,-500.0,0.00019954,2]
[357503222,1744093839149,-500.0,0.00019954,2]
[357503223,1744093839159,-500.0,0.00019954,2]
[357503224,1744093839168,-500.0,0.00019954,2]
[357503225,1744093839178,-500.0,0.00019954,2]
[357503226,1744093839188,-500.0,0.00019954,2]
[357503227,1744093839199,-1148.15,0.00019954,2]
[357503228,1744093839209,-511.06104233,0.00019954,2]
[357503229,1744093839219,-500.0,0.00019954,2]
[357503230,1744093839228,-500.0,0.00019954,2]
[357503231,1744093839250,-500.0,0.00019954,2]
[357503232,1744093839267,-500.0,0.00019954,2]
[357503233,1744093839278,-661.93,0.00019954,2]
[357503234,1744093839288,-633.46,0.00019954,2]
[357503235,1744093839298,-500.0,0.00019954,2]
[357503236,1744093839307,-500.0,0.00019954,2]
[357503237,1744093839318,-500.0,0.00019954,2]
[357503238,1744093839327,-500.0,0.00019954,2]
[357503239,1744093839337,-500.0,0.00019954,2]
[357503240,1744093839347,-500.0,0.00019954,2]
[357503241,1744093839357,-2683.70143518,0.00019977,2]
[357503242,1744093839367,-500.0,0.00020053,2]
[357503243,1744093839377,-642.9,0.00020053,2]
[357503244,1744093839387,-500.0,0.00020053,2]
[357503245,1744093839397,-500.0,0.00020053,2]
[357503246,1744093839407,-500.0,0.00020053,2]
[357503247,1744093839417,-500.0,0.00020053,2]
[357503248,1744093839427,-500.0,0.00020055,2]
[357503249,1744093839439,-500.0,0.00020227,2]
[357503250,1744093839448,-500.0,0.00020227,2]
[357503251,1744093839459,-705.61,0.00020227,2]
[357503252,1744093839469,-500.0,0.00020227,2]
[357503253,1744093839479,-500.0,0.00020227,2]
[357503254,1744093839489,-852.36,0.00020227,2]
[357503255,1744093839499,-187.24530466,0.00020227,2]
[357503256,1744093839510,-500.0,0.00020227,2]
[357503257,1744093839520,-500.0,0.00020227,2]
[357503258,1744093839531,-500.0,0.00020227,2]
[357503259,1744093839542,-500.0,0.00020227,2]
[357503260,1744093839552,-500.0,0.00020227,2]
[357503261,1744093839562,-500.0,0.00020227,2]
[357503262,1744093839571,-500.0,0.00020227,2]
[357503263,1744093839581,-410.85349248,0.00020227,2]
[357503264,1744093839592,-500.0,0.00020227,2]
[357503265,1744093839602,-500.0,0.00020228,2]
[357503266,1744093839612,-500.0,0.00020228,2]
[357503267,1744093839622,-343.03,0.00020228,2]
[357503268,1744093839632,-500.0,0.00020228,2]
[357503269,1744093839642,-500.0,0.00020228,2]
[357503270,1744093839652,-500.0,0.00020228,2]
[357503271,1744093839662,-1148.15,0.00020228,2]
[357503272,1744093839672,-346.04849753,0.00020228,2]
[357503273,1744093839682,-500.0,0.00020228,2]
[357503274,1744093839691,-500.0,0.00020228,2]
[357503275,1744093839701,-500.0,0.00020228,2]
[357503276,1744093839711,-661.93,0.00020228,2]
[357503277,1744093839720,-500.0,0.00020228,2]
[357503278,1744093839730,-500.0,0.00020228,2]
[357503279,1744093839739,-500.0,0.00020228,2]
[357503280,1744093839750,-500.0,0.00020228,2]
[357503281,1744093839759,-500.0,0.00020228,2]
[357503282,1744093839769,-500.0,0.00020228,2]
[357503283,1744093839779,-500.0,0.00020308,2]
[357503284,1744093839789,-500.0,0.00020308,2]
[357503285,1744093839799,-528.97541901,0.00020308,2]
[357503286,1744093839808,-500.0,0.00020308,2]
[357503287,1744093839818,-500.0,0.00020308,2]
[357503288,1744093839827,-500.0,0.00020308,2]
[357503289,1744093839846,-500.0,0.00020308,2]
[357503290,1744093839856,-500.0,0.00020308,2]
[357503291,1744093839865,-355.84683913,0.00020327,2]
[357503292,1744093839875,-500.0,0.00020327,2]
[357503293,1744093839886,-500.0,0.00020327,2]
[357503294,1744093839896,-500.0,0.00020327,2]
[357503295,1744093839905,-168.21,0.00020327,2]
[357503296,1744093839915,-500.0,0.00020329,2]
[357503297,1744093839925,-500.0,0.00020379,2]
[357503298,1744093839934,-502.99094632,0.00020402,2]
[357503299,1744093839944,-500.0,0.00020402,2]
[357503300,1744093839954,-500.0,0.00020419,2]
[357503301,1744093839963,-300.0,0.00020427,2]
[357503302,1744093839973,-500.0,0.00020501,2]
[357503303,1744093839982,-500.0,0.00020501,2]
[357503304,1744093839992,-705.61,0.00020501,2]
[357503305,1744093840001,-500.0,0.00020501,2]
[357503306,1744093840011,-500.0,0.00020501,2]
[357503307,1744093840021,-852.36,0.00020501,2]
[357503308,1744093840031,-500.0,0.00020501,2]
[357503309,1744093840041,-500.0,0.00020501,2]
[357503310,1744093840050,-500.0,0.00020501,2]
[357503311,1744093840060,-500.0,0.00020501,2]
[357503312,1744093840070,-500.0,0.00020501,2]
[357503313,1744093840080,-500.0,0.00020501,2]
[357503314,1744093840089,-500.0,0.00020501,2]
[357503315,1744093840099,-500.0,0.00020501,2]
[357503316,1744093840108,-218.44,0.00020502,2]
[357503317,1744093840118,-500.0,0.00020502,2]
[357503318,1744093840128,-500.0,0.00020502,2]
[357503319,1744093840137,-190.06,0.00020502,2]
[357503320,1744093840147,-500.0,0.00020502,2]
[357503321,1744093840157,-1148.15,0.00020502,2]
[357503322,1744093840166,-500.0,0.00020502,2]
[357503323,1744093840176,-500.0,0.00020502,2]
[357503324,1744093840186,-500.0,0.00020502,2]
[357503325,1744093840195,-661.93,0.00020502,2]
[357503326,1744093840206,-500.0,0.00020502,2]
[357503327,1744093840215,-500.0,0.00020502,2]
[357503328,1744093840226,-500.0,0.00020502,2]
[357503329,1744093840236,-500.0,0.00020502,2]
[357503330,1744093840245,-500.0,0.00020502,2]
[357503331,1744093840255,-500.0,0.00020502,2]
[357503332,1744093840266,-500.0,0.000206,2]
[357503333,1744093840276,-500.0,0.000206,2]
[357503334,1744093840286,-500.0,0.000206,2]
[357503335,1744093840295,-484.18,0.00020601,2]
[357503336,1744093840306,-168.92,0.00020601,2]
[357503337,1744093840316,-500.0,0.00020601,2]
[357503338,1744093840325,-500.0,0.00020603,2]
[357503339,1744093840335,-379.56367826,0.00020775,2]
[357503340,1744093840345,-500.0,0.00020775,2]
[357503341,1744093840355,-705.61,0.00020775,2]
[357503343,1744093840365,-500.0,0.00020775,2]
[357503344,1744093840374,-500.0,0.00020775,2]
[357503345,1744093840384,-852.36,0.00020775,2]
[357503346,1744093840394,-500.0,0.00020775,2]
[357503347,1744093840404,-279.33750766,0.00020775,2]
[357503348,1744093840414,-500.0,0.00020775,2]
[357503349,1744093840424,-500.0,0.00020775,2]
[357503350,1744093840434,-500.0,0.00020775,2]
[357503351,1744093840443,-500.0,0.00020775,2]
[357503352,1744093840453,-500.0,0.00020775,2]
[357503353,1744093840463,-500.0,0.00020775,2]
[357503354,1744093840472,-500.0,0.00020776,2]
[357503355,1744093840481,-500.0,0.00020776,2]
[357503356,1744093840491,-500.0,0.00020776,2]
[357503358,1744093840502,-1148.15,0.00020776,2]
[357503359,1744093840512,-500.0,0.00020776,2]
[357503361,1744093840522,-500.0,0.00020776,2]
[357503362,1744093840532,-500.0,0.00020776,2]
[357503363,1744093840558,-661.93,0.00020776,2]
[357503364,1744093840570,-500.0,0.00020776,2]
[357503365,1744093840580,-500.0,0.00020776,2]
[357503366,1744093840591,-500.0,0.00020776,2]
[357503367,1744093840601,-500.0,0.00020776,2]
[357503368,1744093840611,-500.0,0.00020776,2]
[357503370,1744093840621,-500.0,0.00020776,2]
[357503371,1744093840632,-500.0,0.00020875,2]
[357503372,1744093840642,-500.0,0.00020877,2]
[357503373,1744093840652,-500.0,0.00021049,2]
[357503374,1744093840663,-705.61,0.00021049,2]
[357503375,1744093840673,-500.0,0.00021049,2]
[357503376,1744093840683,-500.0,0.00021049,2]
[357503377,1744093840693,-852.36,0.00021049,2]
[357503378,1744093840703,-500.0,0.00021049,2]
[357503379,1744093840714,-500.0,0.00021049,2]
[357503380,1744093840724,-500.0,0.00021049,2]
[357503381,1744093840734,-500.0,0.00021049,2]
[357503382,1744093840744,-500.0,0.00021049,2]
[357503383,1744093840755,-500.0,0.00021049,2]
[357503384,1744093840764,-500.0,0.00021049,2]
[357503385,1744093840775,-500.0,0.0002105,2]
[357503386,1744093840785,-500.0,0.0002105,2]
[357503387,1744093840795,-500.0,0.0002105,2]
[357503388,1744093840805,-1148.15,0.0002105,2]
[357503389,1744093840814,-500.0,0.0002105,2]
[357503390,1744093840824,-500.0,0.0002105,2]
[357503391,1744093840835,-500.0,0.0002105,2]
[357503392,1744093840849,-661.93,0.0002105,2]
[357503393,1744093840859,-500.0,0.0002105,2]
[357503394,1744093840869,-500.0,0.0002105,2]
[357503395,1744093840879,-500.0,0.0002105,2]
[357503396,1744093840890,-418.24754438,0.0002105,2]
[357503397,1744093840900,-500.0,0.0002105,2]
[357503398,1744093840910,-174.56,0.0002105,2]
[357503399,1744093840921,-500.0,0.00021149,2]
[357503400,1744093840932,-475.48,0.00021151,2]
[357503401,1744093840941,-500.0,0.00021323,2]
[357503402,1744093840955,-705.61,0.00021323,2]
[357503403,1744093840964,-500.0,0.00021323,2]
[357503404,1744093840975,-500.0,0.00021323,2]
[357503405,1744093840985,-852.36,0.00021323,2]
[357503406,1744093840994,-500.0,0.00021323,2]
[357503407,1744093841004,-500.0,0.00021323,2]
[357503408,1744093841014,-500.0,0.00021323,2]
[357503409,1744093841023,-394.42022694,0.00021323,2]
[357503410,1744093841048,-500.0,0.00021323,2]
[357503411,1744093841072,-500.0,0.00021323,2]
[357503412,1744093841095,-500.0,0.00021323,2]
[357503413,1744093841118,-500.0,0.00021324,2]
[357503414,1744093841139,-500.0,0.00021324,2]
[357503415,1744093841159,-500.0,0.00021324,2]
[357503416,1744093841179,-1148.15,0.00021324,2]
[357503417,1744093841199,-500.0,0.00021324,2]
[357503418,1744093841221,-500.0,0.00021324,2]
[357503419,1744093841251,-500.0,0.00021324,2]
[357503420,1744093841283,-661.93,0.00021324,2]
[357503421,1744093841317,-500.0,0.00021324,2]
[357503422,1744093841351,-500.0,0.00021324,2]
[357503423,1744093841362,-500.0,0.00021324,2]
[357503424,1744093841372,-500.0,0.00021324,2]
[357503425,1744093841383,-500.0,0.00021423,2]
[357503426,1744093841393,-240.0,0.00021435,2]
[357503427,1744093841403,-500.0,0.00021597,2]
[357503428,1744093841414,-705.61,0.00021597,2]
[357503429,1744093841424,-500.0,0.00021597,2]
[357503430,1744093841434,-500.0,0.00021597,2]
[357503431,1744093841444,-852.36,0.00021597,2]
[357503432,1744093841455,-500.0,0.00021597,2]
[357503433,1744093841464,-500.0,0.00021597,2]
[357503434,1744093841474,-500.0,0.00021597,2]
[357503435,1744093841484,-500.0,0.00021597,2]
[357503436,1744093841494,-500.0,0.00021597,2]
[357503437,1744093841504,-500.0,0.00021597,2]
[357503438,1744093841514,-500.0,0.00021598,2]
[357503439,1744093841524,-500.0,0.00021598,2]
[357503440,1744093841536,-626.36432655,0.00021598,2]
[357503441,1744093841546,-1148.15,0.00021598,2]
[357503442,1744093841555,-500.0,0.00021598,2]
[357503443,1744093841565,-500.0,0.00021598,2]
[357503444,1744093841575,-500.0,0.00021598,2]
[357503445,1744093841585,-661.93,0.00021598,2]
[357503446,1744093841595,-500.0,0.00021598,2]
[357503447,1744093841605,-500.0,0.00021598,2]
[357503448,1744093841615,-500.0,0.00021598,2]
[357503449,1744093841625,-500.0,0.00021598,2]
[357503450,1744093841635,-160.0,0.00021641,2]
[357503451,1744093841645,-419.46366559,0.00021641,2]
[357503452,1744093841655,-12530.86563381,0.00021641,2]
[357503453,1744093841665,-837.41003169,0.00021641,2]
[357503454,1744093841675,-160.0,0.00021641,2]
[357503455,1744093841686,-500.0,0.00021697,2]
[357503456,1744093841696,-500.0,0.00021871,2]
[357503457,1744093841706,-705.61,0.00021871,2]
[357503458,1744093841717,-500.0,0.00021871,2]
[357503459,1744093841727,-500.0,0.00021871,2]
[357503460,1744093841738,-852.36,0.00021871,2]
[357503461,1744093841748,-500.0,0.00021871,2]
[357503462,1744093841759,-500.0,0.00021871,2]
[357503463,1744093841769,-545.25483493,0.00021871,2]
[357503464,1744093841780,-500.0,0.00021871,2]
[357503465,1744093841791,-500.0,0.00021871,2]
[357503466,1744093841801,-500.0,0.00021871,2]
[357503467,1744093841812,-500.0,0.00021872,2]
[357503468,1744093841822,-500.0,0.00021872,2]
[357503469,1744093841832,-1148.15,0.00021872,2]
[357503470,1744093841844,-500.0,0.00021872,2]
[357503471,1744093841854,-500.0,0.00021872,2]
[357503472,1744093841864,-272.4822622,0.00021872,2]
[357503473,1744093841874,-661.93,0.00021872,2]
[357503474,1744093841885,-471.65,0.00021872,2]
[357503475,1744093841896,-500.0,0.00021872,2]
[357503476,1744093842136,-500.0,0.00021872,2]
[357503477,1744093842147,-360.5899122,0.00021872,2]
[357503478,1744093842157,-200.0,0.00021917,2]
[357503479,1744093842167,-3776.838262,0.00021918,2]
[357503480,1744093842176,-500.0,0.00021971,2]
[357503481,1744093842186,-327.3814664,0.00022145,2]
[357503482,1744093842196,-705.61,0.00022145,2]
[357503483,1744093842206,-500.0,0.00022145,2]
[357503484,1744093842215,-500.0,0.00022145,2]
[357503485,1744093842225,-852.36,0.00022145,2]
[357503486,1744093842235,-500.0,0.00022145,2]
[357503487,1744093842244,-500.0,0.00022145,2]
[357503488,1744093842254,-500.0,0.00022145,2]
[357503489,1744093842264,-500.0,0.00022145,2]
[357503490,1744093842273,-500.0,0.00022146,2]
[357503491,1744093842283,-500.0,0.00022146,2]
[357503492,1744093842293,-1148.15,0.00022146,2]
[357503493,1744093842303,-506.02161778,0.00022146,2]
[357503494,1744093842313,-500.0,0.00022146,2]
[357503495,1744093842322,-661.93,0.00022146,2]
[357503496,1744093842331,-500.0,0.00022146,2]
[357503497,1744093842341,-500.0,0.00022146,2]
[357503498,1744093842350,-500.0,0.00022245,2]
[357503499,1744093842359,-4835.57993004,0.000224,4]
[357503500,1744093842368,-705.61,0.00022419,2]
[357503501,1744093842378,-500.0,0.00022419,2]
[357503502,1744093842387,-614.30379216,0.00022419,2]
[357503503,1744093842397,-852.36,0.00022419,2]
[357503504,1744093842406,-500.0,0.00022419,2]
[357503505,1744093842416,-500.0,0.00022419,2]
[357503506,1744093842426,-500.0,0.00022419,2]
[357503507,1744093842435,-500.0,0.00022419,2]
[357503508,1744093842445,-500.0,0.0002242,2]
[357503509,1744093842454,-500.0,0.0002242,2]
[357503510,1744093842464,-1148.15,0.0002242,2]
[357503511,1744093842473,-500.0,0.0002242,2]
[357503512,1744093842482,-661.93,0.0002242,2]
[357503513,1744093842492,-500.0,0.0002242,2]
[357503514,1744093842501,-500.0,0.0002242,2]
[357503515,1744093842511,-500.0,0.00022519,2]
[357503516,1744093842520,-705.61,0.00022693,2]
[357503517,1744093842531,-480.9209671,0.00022693,2]
[357503518,1744093842540,-852.36,0.00022693,2]